lending/lending_fUSD_20250121
["ID","MTS","AMOUNT","RATE_DAILY","PERIOD"]
[349801136,1737436238260,-582.69731645,0.00019634,2]
[349801138,1737436238269,-500.0,0.00019634,2]
[349801140,1737436238279,-500.0,0.00019634,2]
[349801142,1737436238289,-500.0,0.00019634,2]
[349801144,1737436238298,-500.0,0.00019634,2]
[349801146,1737436238307,-500.0,0.00019634,2]
[349801148,1737436238317,-500.0,0.00019634,2]
[349801150,1737436238326,-500.0,0.00019634,2]
[349801152,1737436238335,-502.42723347,0.00019634,2]
[349801154,1737436238345,-500.0,0.00019634,2]
[349801156,1737436238355,-500.0,0.00019634,2]
[349801158,1737436238366,-501.49282566,0.00019634,2]
[349801161,1737436238374,-500.0,0.00019634,2]
[349801164,1737436238383,-502.49446155,0.00019634,2]
[349801166,1737436238393,-509.75024031,0.00019634,2]
[349801168,1737436238402,-567.63189087,0.00019634,2]
[349801170,1737436238411,-503.50850436,0.00019634,2]
[349801172,1737436238421,-508.99974634,0.00019634,2]
[349801174,1737436238430,-465.43125348,0.00019634,2]
[349801176,1737436238439,-152.48238426,0.00019634,2]
[349801178,1737436238449,-500.0,0.00019634,2]
[349801180,1737436238458,-5016.73220271,0.00019634,2]
[349801182,1737436238468,-500.0,0.00019634,2]
[349801184,1737436238477,-505.51609333,0.00019634,2]
[349801186,1737436238487,-500.0,0.00019634,2]
[349801188,1737436238497,-500.0,0.00019634,2]
[349801190,1737436238506,-510.14848596,0.00019634,2]
[349801191,1737436238515,-500.0,0.00019634,2]
[349801193,1737436238525,-500.0,0.00019634,2]
[349801194,1737436238534,-300.0,0.00019634,2]
[349801195,1737436238545,-500.0,0.00019634,2]
[349801196,1737436238554,-500.0,0.00019634,2]
[349801197,1737436238563,-500.0,0.00019634,2]
[349801198,1737436238572,-500.0,0.00019634,2]
[349801199,1737436238582,-500.0,0.00019634,2]
[349801200,1737436238592,-500.0,0.00019634,2]
[349801201,1737436238602,-500.0,0.00019634,2]
[349801202,1737436238611,-500.0,0.00019634,2]
[349801203,1737436238620,-500.0,0.00019634,2]
[349801204,1737436238629,-500.0,0.00019634,2]
[349801205,1737436238640,-456.04308043,0.00019634,2]
[349801206,1737436238649,-500.0,0.00019634,2]
[349801207,1737436238659,-500.0,0.00019634,2]
[349801208,1737436238668,-500.0,0.00019634,2]
[349801209,1737436238677,-955.57,0.00019634,2]
[349801210,1737436238686,-500.0,0.00019634,2]
[349801211,1737436238695,-500.0,0.00019634,2]
[349801212,1737436238704,-500.0,0.00019634,2]
[349801213,1737436238713,-500.0,0.00019726,2]
[349801214,1737436238722,-832.27860749,0.00019807,2]
[349801215,1737436238731,-6567.6991,0.00019808,2]
[349801217,1737436238740,-173.78,0.00019898,2]
[349801219,1737436238754,-162.11636,0.00019907,2]
[349801221,1737436238764,-168.111227,0.00019907,2]
[349801223,1737436238773,-500.0,0.00019907,2]
[349801225,1737436238782,-356.18040586,0.00019907,2]
[349801227,1737436238794,-392.67072522,0.00019907,2]
[349801229,1737436238803,-500.0,0.00019907,2]
[349801231,1737436238812,-500.0,0.00019907,2]
[349801233,1737436238822,-500.0,0.00019907,2]
[349801235,1737436238832,-500.0,0.00019907,2]
[349801237,1737436238842,-162.54634,0.00019907,2]
[349801239,1737436238852,-500.0,0.00019907,2]
[349801241,1737436238861,-500.0,0.00019907,2]
[349801243,1737436238870,-500.0,0.00019907,2]
[349801245,1737436238880,-512.13213624,0.00019907,2]
[349801247,1737436238889,-532.54690124,0.00019907,2]
[349801249,1737436238898,-500.0,0.00019907,2]
[349801251,1737436238907,-500.0,0.00019907,2]
[349801253,1737436238917,-500.0,0.00019907,2]
[349801255,1737436238926,-500.0,0.00019907,2]
[349801257,1737436238935,-500.0,0.00019907,2]
[349801259,1737436238944,-500.0,0.00019907,2]
[349801261,1737436238953,-602.66,0.00019907,2]
[349801263,1737436238963,-496.0,0.00019907,2]
[349801265,1737436238972,-500.0,0.00019907,2]
[349801267,1737436238982,-500.0,0.00019907,2]
[349801269,1737436238991,-500.0,0.00019907,2]
[349801271,1737436239001,-500.0,0.00019907,2]
[349801273,1737436239010,-500.0,0.00019907,2]
[349801275,1737436239019,-500.0,0.00019907,2]
[349801277,1737436239030,-500.0,0.00019907,2]
[349801279,1737436239040,-500.0,0.00019907,2]
[349801281,1737436239049,-500.0,0.00019907,2]
[349801282,1737436239058,-500.0,0.00019907,2]
[349801284,1737436239067,-500.0,0.00019907,2]
[349801286,1737436239076,-500.0,0.00019907,2]
[349801288,1737436239086,-901.69,0.00019907,2]
[349801290,1737436239096,-542.36,0.00019907,2]
[349801292,1737436239105,-500.0,0.00019907,2]
[349801294,1737436239115,-500.0,0.00019907,2]
[349801296,1737436239124,-500.0,0.00019907,2]
[349801298,1737436239133,-500.0,0.00019907,2]
[349801300,1737436239143,-500.0,0.00019907,2]
[349801302,1737436239152,-749.33,0.00019907,2]
[349801304,1737436239161,-500.0,0.00019907,2]
[349801306,1737436239170,-500.0,0.00019907,2]
[349801308,1737436239180,-500.0,0.00019907,2]
[349801310,1737436239189,-502.38,0.00019907,2]
[349801312,1737436239199,-646.66688309,0.00019907,2]
[349801314,1737436239208,-500.0,0.00019907,2]
[349801316,1737436239217,-500.0,0.00019907,2]
[349801318,1737436239227,-500.0,0.00019907,2]
[349801320,1737436239236,-888.87,0.00019907,2]
[349801322,1737436239245,-625.85,0.00019907,2]
[349801324,1737436239255,-1014.26,0.00019907,2]
[349801326,1737436239265,-500.0,0.00019907,2]
[349801328,1737436239274,-500.0,0.00019907,2]
[349801330,1737436239283,-601.34,0.00019907,2]
[349801332,1737436239294,-500.0,0.00019907,2]
[349801334,1737436239303,-500.0,0.00019907,2]
[349801336,1737436239312,-500.0,0.00019907,2]
[349801338,1737436239321,-573.48,0.00019907,2]
[349801340,1737436239330,-571.52,0.00019907,2]
[349801342,1737436239339,-622.22,0.00019907,2]
[349801344,1737436239349,-500.0,0.00019907,2]
[349801346,1737436239358,-536.24,0.00019907,2]
[349801348,1737436239367,-950.99,0.00019907,2]
[349801350,1737436239377,-500.0,0.00019907,2]
[349801352,1737436239387,-500.0,0.00019907,2]
[349801354,1737436239396,-500.0,0.00019907,2]
[349801356,1737436239406,-715.53,0.00019907,2]
[349801358,1737436239416,-1202.66,0.00019907,2]
[349801360,1737436239425,-786.22,0.00019907,2]
[349801362,1737436239436,-500.0,0.00019907,2]
[349801364,1737436239445,-500.0,0.00019907,2]
[349801386,1737436239639,-580.07645975,0.00019907,2]
[349801389,1737436239651,-787.58,0.00019907,2]
[349801391,1737436239660,-500.0,0.00019907,2]
[349801393,1737436239670,-500.0,0.00019907,2]
[349801395,1737436239680,-500.0,0.00019907,2]
[349801397,1737436239689,-500.0,0.00019907,2]
[349801399,1737436239698,-500.0,0.00019907,2]
[349801401,1737436239707,-500.0,0.00019907,2]
[349801403,1737436239717,-500.0,0.00019907,2]
[349801405,1737436239726,-500.0,0.00019907,2]
[349801407,1737436239735,-822.88,0.00019907,2]
[349801409,1737436239746,-500.0,0.00019907,2]
[349801411,1737436239756,-514.55,0.00019907,2]
[349801413,1737436239765,-500.0,0.00019907,2]
[349801415,1737436239775,-500.0,0.00019907,2]
[349801417,1737436239784,-500.0,0.00019907,2]
[349801419,1737436239795,-500.0,0.00019907,2]
[349801421,1737436239804,-588.14,0.00019907,2]
[349801423,1737436239814,-500.0,0.00019907,2]
[349801425,1737436239825,-625.42,0.00019907,2]
[349801427,1737436239835,-500.0,0.00019907,2]
[349801429,1737436239845,-500.0,0.00019907,2]
[349801431,1737436239855,-500.0,0.00019907,2]
[349801433,1737436239864,-500.0,0.00019907,2]
[349801435,1737436239873,-500.0,0.00019907,2]
[349801437,1737436239883,-500.0,0.00019907,2]
[349801439,1737436239892,-500.0,0.00019907,2]
[349801441,1737436239901,-500.0,0.00019907,2]
[349801443,1737436239910,-500.0,0.00019907,2]
[349801445,1737436239920,-500.0,0.00019907,2]
[349801447,1737436239930,-500.0,0.00019907,2]
[349801449,1737436239939,-500.0,0.00019907,2]
[349801451,1737436239948,-500.0,0.00019907,2]
[349801453,1737436239958,-500.0,0.00019907,2]
[349801455,1737436239967,-500.0,0.00019907,2]
[349801457,1737436239976,-500.0,0.00019907,2]
[349801459,1737436239986,-500.0,0.00019907,2]
[349801461,1737436239995,-500.0,0.00019907,2]
[349801462,1737436240004,-500.0,0.00019907,2]
[349801465,1737436240014,-630.42,0.00019907,2]
[349801467,1737436240024,-500.0,0.00019907,2]
[349801468,1737436240033,-500.0,0.00019907,2]
[349801470,1737436240045,-500.0,0.00019907,2]
[349801472,1737436240055,-650.02,0.00019907,2]
[349801474,1737436240064,-500.0,0.00019907,2]
[349801476,1737436240074,-500.0,0.00019907,2]
[349801478,1737436240083,-925.58,0.00019907,2]
[349801480,1737436240093,-500.0,0.00019907,2]
[349801482,1737436240103,-500.0,0.00019907,2]
[349801484,1737436240112,-500.0,0.00019907,2]
[349801486,1737436240122,-1680.22,0.00019907,2]
[349801488,1737436240131,-500.0,0.00019907,2]
[349801490,1737436240140,-535.61,0.00019907,2]
[349801492,1737436240149,-500.0,0.00019907,2]
[349801494,1737436240159,-500.0,0.00019907,2]
[349801496,1737436240169,-500.0,0.00019907,2]
[349801498,1737436240178,-500.0,0.00019907,2]
[349801500,1737436240188,-500.0,0.00019907,2]
[349801502,1737436240197,-500.0,0.00019907,2]
[349801504,1737436240206,-500.0,0.00019907,2]
[349801506,1737436240216,-500.0,0.00019907,2]
[349801508,1737436240225,-500.0,0.00019907,2]
[349801510,1737436240234,-500.0,0.00019907,2]
[349801512,1737436240243,-485.09677001,0.00019907,2]
[349801514,1737436240253,-500.0,0.00019907,2]
[349801516,1737436240262,-500.0,0.00019907,2]
[349801518,1737436240271,-500.0,0.00019907,2]
[349801519,1737436240280,-191.46015416,0.00019907,2]
[349801521,1737436240291,-500.0,0.00019907,2]
[349801523,1737436240300,-500.0,0.00019907,2]
[349801525,1737436240310,-694.47,0.00019907,2]
[349801527,1737436240319,-500.0,0.00019907,2]
[349801529,1737436240329,-500.0,0.00019907,2]
[349801531,1737436240338,-824.38,0.00019907,2]
[349801533,1737436240347,-500.0,0.00019907,2]
[349801536,1737436240357,-855.28,0.00019907,2]
[349801537,1737436240366,-500.0,0.00019907,2]
[349801539,1737436240375,-500.0,0.00019907,2]
[349801541,1737436240385,-500.0,0.00019907,2]
[349801543,1737436240395,-371.61403079,0.00019907,2]
[349801545,1737436240404,-675.39,0.00019907,2]
[349801548,1737436240414,-500.0,0.00019907,2]
[349801549,1737436240423,-500.0,0.00019907,2]
[349801551,1737436240432,-500.0,0.00019907,2]
[349801553,1737436240442,-500.0,0.00019907,2]
[349801555,1737436240451,-92538.83393221,0.00019908,2]
[349801557,1737436240460,-500.0,0.00019908,2]
[349801559,1737436240470,-300.0,0.00019908,2]
[349801561,1737436240480,-500.0,0.00019908,2]
[349801563,1737436240489,-500.0,0.00019908,2]
[349801565,1737436240499,-500.0,0.00019908,2]
[349801567,1737436240508,-500.0,0.00019908,2]
[349801569,1737436240518,-500.0,0.00019908,2]
[349801571,1737436240528,-500.0,0.00019908,2]
[349801573,1737436240538,-500.0,0.00019908,2]
[349801575,1737436240548,-500.0,0.00019908,2]
[349801577,1737436240558,-955.57,0.00019908,2]
[349801579,1737436240568,-500.0,0.00019908,2]
[349801581,1737436240579,-500.0,0.00019908,2]
[349801583,1737436240589,-500.0,0.00019908,2]
[349801585,1737436240598,-420.0,0.0001991,2]
[349801587,1737436240608,-832.2786074,0.0002004,2]
[349801589,1737436240618,-500.0,0.00020181,2]
[349801591,1737436240627,-309.67659164,0.00020181,2]
[349801593,1737436240637,-500.0,0.00020181,2]
[349801595,1737436240647,-500.0,0.00020181,2]
[349801597,1737436240656,-500.0,0.00020181,2]
[349801599,1737436240666,-316.3,0.00020181,2]
[349801601,1737436240675,-556.30838924,0.00020181,2]
[349801603,1737436240684,-500.0,0.00020181,2]
[349801605,1737436240694,-500.0,0.00020181,2]
[349801607,1737436240703,-500.0,0.00020181,2]
[349801609,1737436240713,-500.0,0.00020181,2]
[349801611,1737436240722,-500.0,0.00020181,2]
[349801613,1737436240731,-500.0,0.00020181,2]
[349801615,1737436240742,-602.66,0.00020181,2]
[349801617,1737436240754,-500.0,0.00020181,2]
[349801619,1737436240763,-500.0,0.00020181,2]
[349801621,1737436240773,-500.0,0.00020181,2]
[349801623,1737436240783,-494.29082311,0.00020181,2]
[349801625,1737436240793,-500.0,0.00020181,2]
[349801627,1737436240803,-500.0,0.00020181,2]
[349801629,1737436240813,-500.0,0.00020181,2]
[349801631,1737436240822,-500.0,0.00020181,2]
[349801632,1737436240832,-500.0,0.00020181,2]
[349801634,1737436240841,-500.0,0.00020181,2]
[349801636,1737436240850,-500.0,0.00020181,2]
[349801638,1737436240859,-500.0,0.00020181,2]
[349801640,1737436240869,-901.69,0.00020181,2]
[349801642,1737436240878,-500.0,0.00020181,2]
[349801644,1737436240887,-500.0,0.00020181,2]
[349801646,1737436240896,-500.0,0.00020181,2]
[349801648,1737436240905,-500.0,0.00020181,2]
[349801650,1737436240914,-500.0,0.00020181,2]
[349801652,1737436240923,-749.33,0.00020181,2]
[349801654,1737436240933,-206.80413519,0.00020181,2]
[349801656,1737436240943,-502.38,0.00020181,2]
[349801658,1737436240952,-500.0,0.00020181,2]
[349801660,1737436240961,-500.0,0.00020181,2]
[349801662,1737436240970,-500.0,0.00020181,2]
[349801664,1737436240980,-888.87,0.00020181,2]
[349801666,1737436240989,-625.85,0.00020181,2]
[349801668,1737436240998,-1014.26,0.00020181,2]
[349801670,1737436241008,-500.0,0.00020181,2]
[349801672,1737436241017,-500.0,0.00020181,2]
[349801674,1737436241027,-601.34,0.00020181,2]
[349801676,1737436241036,-500.0,0.00020181,2]
[349801678,1737436241046,-500.0,0.00020181,2]
[349801680,1737436241055,-500.0,0.00020181,2]
[349801682,1737436241064,-573.48,0.00020181,2]
[349801684,1737436241073,-571.52,0.00020181,2]
[349801686,1737436241082,-622.22,0.00020181,2]
[349801688,1737436241091,-500.0,0.00020181,2]
[349801690,1737436241101,-536.24,0.00020181,2]
[349801692,1737436241110,-950.99,0.00020181,2]
[349801694,1737436241120,-500.0,0.00020181,2]
[349801696,1737436241129,-500.0,0.00020181,2]
[349801698,1737436241138,-500.0,0.00020181,2]
[349801700,1737436241147,-715.53,0.00020181,2]
[349801702,1737436241156,-1202.66,0.00020181,2]
[349801704,1737436241165,-500.0,0.00020181,2]
[349801706,1737436241174,-786.22,0.00020181,2]
[349801708,1737436241184,-500.0,0.00020181,2]
[349801710,1737436241192,-787.58,0.00020181,2]
[349801712,1737436241201,-500.0,0.00020181,2]
[349801714,1737436241210,-220.62257145,0.00020181,2]
[349801716,1737436241219,-500.0,0.00020181,2]
[349801718,1737436241229,-500.0,0.00020181,2]
[349801720,1737436241238,-500.0,0.00020181,2]
[349801722,1737436241247,-500.0,0.00020181,2]
[349801724,1737436241256,-500.0,0.00020181,2]
[349801726,1737436241265,-822.88,0.00020181,2]
[349801728,1737436241274,-500.0,0.00020181,2]
[349801729,1737436241283,-500.0,0.00020181,2]
[349801731,1737436241293,-500.0,0.00020181,2]
[349801733,1737436241302,-500.0,0.00020181,2]
[349801735,1737436241311,-588.14,0.00020181,2]
[349801737,1737436241320,-625.42,0.00020181,2]
[349801739,1737436241329,-500.0,0.00020181,2]
[349801741,1737436241338,-500.0,0.00020181,2]
[349801743,1737436241348,-500.0,0.00020181,2]
[349801745,1737436241357,-500.0,0.00020181,2]
[349801747,1737436241366,-500.0,0.00020181,2]
[349801749,1737436241375,-500.0,0.00020181,2]
[349801751,1737436241384,-500.0,0.00020181,2]
[349801753,1737436241394,-500.0,0.00020181,2]
[349801755,1737436241403,-500.0,0.00020181,2]
[349801757,1737436241412,-500.0,0.00020181,2]
[349801759,1737436241421,-500.0,0.00020181,2]
[349801761,1737436241430,-500.0,0.00020181,2]
[349801763,1737436241440,-500.0,0.00020181,2]
[349801765,1737436241450,-630.42,0.00020181,2]
[349801767,1737436241460,-500.0,0.00020181,2]
[349801769,1737436241470,-600.88287881,0.00020181,2]
[349801771,1737436241479,-500.0,0.00020181,2]
[349801773,1737436241488,-650.02,0.00020181,2]
[349801775,1737436241497,-925.58,0.00020181,2]
[349801777,1737436241507,-500.0,0.00020181,2]
[349801779,1737436241515,-531.18,0.00020181,2]
[349801781,1737436241525,-1680.22,0.00020181,2]
[349801783,1737436241534,-500.0,0.00020181,2]
[349801785,1737436241544,-535.61,0.00020181,2]
[349801787,1737436241554,-500.0,0.00020181,2]
[349801789,1737436241562,-500.0,0.00020181,2]
[349801791,1737436241573,-500.0,0.00020181,2]
[349801792,1737436241583,-500.0,0.00020181,2]
[349801793,1737436241593,-500.0,0.00020181,2]
[349801794,1737436241603,-524.43429056,0.00020181,2]
[349801795,1737436241612,-694.47,0.00020181,2]
[349801796,1737436241621,-500.0,0.00020181,2]
[349801797,1737436241632,-500.0,0.00020181,2]
[349801798,1737436241641,-824.38,0.00020181,2]
[349801799,1737436241650,-500.0,0.00020181,2]
[349801800,1737436241659,-855.28,0.00020181,2]
[349801801,1737436241669,-500.0,0.00020181,2]
[349801802,1737436241677,-500.0,0.00020181,2]
[349801803,1737436241687,-675.39,0.00020181,2]
[349801804,1737436241697,-500.0,0.00020181,2]
[349801805,1737436241706,-500.0,0.00020181,2]
[349801806,1737436241716,-500.0,0.00020181,2]
[349801807,1737436241725,-500.0,0.00020182,2]
[349801808,1737436241734,-300.0,0.00020182,2]
[349801810,1737436241744,-500.0,0.00020182,2]
[349801811,1737436241756,-500.0,0.00020182,2]
[349801812,1737436241765,-500.0,0.00020182,2]
[349801813,1737436241774,-500.0,0.00020182,2]
[349801814,1737436241783,-500.0,0.00020182,2]
[349801815,1737436241794,-366.60047625,0.00020182,2]
[349801816,1737436241803,-500.0,0.00020182,2]
[349801817,1737436241812,-955.57,0.00020182,2]
[349801818,1737436241823,-500.0,0.00020182,2]
[349801819,1737436241832,-500.0,0.00020182,2]
[349801820,1737436241842,-500.0,0.00020182,2]
[349801821,1737436241851,-832.2786074,0.00020272,2]
[349801822,1737436241861,-152.0,0.00020442,3]
[349801823,1737436241870,-213.125266,0.00020455,2]
[349801824,1737436241880,-500.0,0.00020455,2]
[349801825,1737436241890,-500.0,0.00020455,2]
[349801826,1737436241899,-500.0,0.00020455,2]
[349801827,1737436241908,-500.0,0.00020455,2]
[349801829,1737436241917,-500.0,0.00020455,2]
[349801831,1737436241927,-500.0,0.00020455,2]
[349801833,1737436241935,-500.0,0.00020455,2]
[349801835,1737436241944,-500.0,0.00020455,2]
[349801837,1737436241954,-500.0,0.00020455,2]
[349801839,1737436241963,-602.66,0.00020455,2]
[349801841,1737436241972,-517.21833028,0.00020455,2]
[349801843,1737436241981,-500.0,0.00020455,2]
[349801845,1737436241990,-500.0,0.00020455,2]
[349801847,1737436241999,-500.0,0.00020455,2]
[349801849,1737436242008,-500.0,0.00020455,2]
[349801851,1737436242017,-477.90958936,0.00020455,2]
[349801853,1737436242026,-500.0,0.00020455,2]
[349801855,1737436242037,-500.0,0.00020455,2]
[349801857,1737436242046,-500.0,0.00020455,2]
[349801859,1737436242055,-500.0,0.00020455,2]
[349801861,1737436242064,-901.69,0.00020455,2]
[349801863,1737436242074,-200.35,0.00020455,2]
[349801865,1737436242083,-500.0,0.00020455,2]
[349801867,1737436242092,-363.7,0.00020455,2]
[349801869,1737436242100,-500.0,0.00020455,2]
[349801871,1737436242109,-749.33,0.00020455,2]
[349801873,1737436242118,-502.38,0.00020455,2]
[349801875,1737436242127,-500.0,0.00020455,2]
[349801877,1737436242137,-500.0,0.00020455,2]
[349801879,1737436242146,-500.0,0.00020455,2]
[349801881,1737436242155,-888.87,0.00020455,2]
[349801883,1737436242164,-625.85,0.00020455,2]
[349801885,1737436242173,-1014.26,0.00020455,2]
[349801886,1737436242182,-500.0,0.00020455,2]
[349801888,1737436242191,-500.0,0.00020455,2]
[349801891,1737436242201,-601.34,0.00020455,2]
[349801892,1737436242210,-500.0,0.00020455,2]
[349801894,1737436242219,-500.0,0.00020455,2]
[349801896,1737436242228,-500.0,0.00020455,2]
[349801898,1737436242237,-573.48,0.00020455,2]
[349801900,1737436242246,-571.52,0.00020455,2]
[349801902,1737436242255,-622.22,0.00020455,2]
[349801904,1737436242264,-500.0,0.00020455,2]
[349801906,1737436242273,-536.24,0.00020455,2]
[349801908,1737436242282,-950.99,0.00020455,2]
[349801910,1737436242292,-500.0,0.00020455,2]
[349801912,1737436242301,-500.0,0.00020455,2]
[349801914,1737436242310,-500.0,0.00020455,2]
[349801916,1737436242319,-715.53,0.00020455,2]
[349801918,1737436242329,-1202.66,0.00020455,2]
[349801920,1737436242338,-500.0,0.00020455,2]
[349801922,1737436242347,-786.22,0.00020455,2]
[349801924,1737436242356,-500.0,0.00020455,2]
[349801926,1737436242365,-787.58,0.00020455,2]
[349801928,1737436242376,-500.0,0.00020455,2]
[349801930,1737436242385,-500.0,0.00020455,2]
[349801932,1737436242395,-500.0,0.00020455,2]
[349801934,1737436242404,-500.0,0.00020455,2]
[349801936,1737436242413,-500.0,0.00020455,2]
[349801938,1737436242422,-500.0,0.00020455,2]
[349801940,1737436242432,-822.88,0.00020455,2]
[349801942,1737436242442,-500.0,0.00020455,2]
[349801944,1737436242451,-500.0,0.00020455,2]
[349801946,1737436242460,-500.0,0.00020455,2]
[349801948,1737436242469,-500.0,0.00020455,2]
[349801950,1737436242479,-588.14,0.00020455,2]
[349801952,1737436242489,-625.42,0.00020455,2]
[349801955,1737436242498,-500.0,0.00020455,2]
[349801958,1737436242507,-500.0,0.00020455,2]
[349801961,1737436242516,-500.0,0.00020455,2]
[349801963,1737436242525,-500.0,0.00020455,2]
[349801965,1737436242534,-500.0,0.00020455,2]
[349801967,1737436242544,-500.0,0.00020455,2]
[349801969,1737436242553,-500.0,0.00020455,2]
[349801972,1737436242562,-500.0,0.00020455,2]
[349801975,1737436242571,-500.0,0.00020455,2]
[349801977,1737436242582,-500.0,0.00020455,2]
[349801979,1737436242592,-500.0,0.00020455,2]
[349801981,1737436242601,-500.0,0.00020455,2]
[349801983,1737436242610,-500.0,0.00020455,2]
[349801985,1737436242619,-630.42,0.00020455,2]
[349801987,1737436242629,-500.0,0.00020455,2]
[349801991,1737436242638,-500.0,0.00020455,2]
[349801995,1737436242647,-650.02,0.00020455,2]
[349801997,1737436242656,-925.58,0.00020455,2]
[349802000,1737436242666,-556.23328572,0.00020455,2]
[349802003,1737436242675,-1680.22,0.00020455,2]
[349802007,1737436242685,-500.0,0.00020455,2]
[349802010,1737436242694,-535.61,0.00020455,2]
[349802013,1737436242703,-500.0,0.00020455,2]
[349802016,1737436242712,-500.0,0.00020455,2]
[349802020,1737436242722,-500.0,0.00020455,2]
[349802023,1737436242731,-500.0,0.00020455,2]
[349802026,1737436242740,-500.0,0.00020455,2]
[349802028,1737436242751,-694.47,0.00020455,2]
[349802031,1737436242760,-500.0,0.00020455,2]
[349802034,1737436242769,-500.0,0.00020455,2]
[349802037,1737436242779,-824.38,0.00020455,2]
[349802040,1737436242788,-500.0,0.00020455,2]
[349802043,1737436242799,-855.28,0.00020455,2]
[349802046,1737436242808,-500.0,0.00020455,2]
[349802049,1737436242817,-500.0,0.00020455,2]
[349802053,1737436242827,-675.39,0.00020455,2]
[349802055,1737436242836,-500.0,0.00020455,2]
[349802058,1737436242845,-500.0,0.00020455,2]
[349802062,1737436242854,-500.0,0.00020455,2]
[349802064,1737436242863,-500.0,0.00020456,2]
[349802067,1737436242873,-300.0,0.00020456,2]
[349802070,1737436242882,-500.0,0.00020456,2]
[349802073,1737436242891,-500.0,0.00020456,2]
[349802075,1737436242901,-500.0,0.00020456,2]
[349802078,1737436242910,-500.0,0.00020456,2]
[349802081,1737436242920,-500.0,0.00020456,2]
[349802084,1737436242930,-500.0,0.00020456,2]
[349802087,1737436242939,-955.57,0.00020456,2]
[349802090,1737436242949,-500.0,0.00020456,2]
[349802093,1737436242958,-500.0,0.00020456,2]
[349802096,1737436242967,-500.0,0.00020456,2]
[349802099,1737436242976,-832.2786074,0.00020505,2]
[349802102,1737436242985,-36172.1816,0.0002063,2]
[349802104,1737436242994,-568.64875205,0.00020684,2]
[349802107,1737436243003,-1000.0,0.00020719,2]
[349802110,1737436243013,-418.45789232,0.00020728,2]
[349802113,1737436243022,-292.58776193,0.00020728,2]
[349802116,1737436243031,-168.111227,0.00020729,2]
[349802119,1737436243039,-500.0,0.00020729,2]
[349802122,1737436243050,-500.0,0.00020729,2]
[349802125,1737436243059,-162.54634,0.00020729,2]
[349802128,1737436243068,-500.0,0.00020729,2]
[349802131,1737436243077,-500.0,0.00020729,2]
[349802134,1737436243086,-500.0,0.00020729,2]
[349802137,1737436243096,-500.0,0.00020729,2]
[349802140,1737436243105,-500.0,0.00020729,2]
[349802143,1737436243114,-602.66,0.00020729,2]
[349802146,1737436243124,-500.0,0.00020729,2]
[349802149,1737436243133,-228.01490949,0.00020729,2]
[349802151,1737436243143,-158.450321,0.00020729,2]
[349802153,1737436243152,-500.0,0.00020729,2]